[Event "Late-Titled-Tuesday-Blitz-October-24-2023"]
[Site "Chess.com"]
[Date "2023.10.24"]
[Round "9"]
[White "ChuckPhil"]
[Black "CraiggoryC"]
[Result "1-0"]
[WhiteElo "2527"]
[BlackElo "2200"]
[TimeControl "180+1"]
[EndTime "15:43:13 PDT"]
[Termination "ChuckPhil won on time"]

1. d4 {[%clk 0:03:00.9]} 1... e6 {[%clk 0:02:58.4]} 2. e4 {[%clk 0:03:00.5]}
2... d5 {[%clk 0:02:57.7]} 3. Nd2 {[%clk 0:03:00.6]} 3... Be7 {[%clk 0:02:57.5]}
4. Ngf3 {[%clk 0:02:58.6]} 4... Nf6 {[%clk 0:02:57.8]} 5. e5 {[%clk 0:02:55.1]}
5... Nfd7 {[%clk 0:02:58.3]} 6. Bd3 {[%clk 0:02:54.4]} 6... c5 {[%clk
0:02:58.9]} 7. c3 {[%clk 0:02:50.9]} 7... Nc6 {[%clk 0:02:59.3]} 8. O-O {[%clk
0:02:49.4]} 8... a5 {[%clk 0:02:59]} 9. Re1 {[%clk 0:02:45.9]} 9... cxd4 {[%clk
0:02:57.4]} 10. cxd4 {[%clk 0:02:45.8]} 10... Qb6 {[%clk 0:02:58]} 11. Qe2
{[%clk 0:02:07.2]} 11... g5 {[%clk 0:02:42.5]} 12. Nb3 {[%clk 0:01:33.2]} 12...
g4 {[%clk 0:02:34]} 13. Ng5 {[%clk 0:01:27.6]} 13... a4 {[%clk 0:01:54.1]} 14.
Nc5 {[%clk 0:01:18.1]} 14... Nxd4 {[%clk 0:01:47.9]} 15. Qxg4 {[%clk 0:01:12.5]}
15... Bxc5 {[%clk 0:01:34.3]} 16. Nxf7 {[%clk 0:01:09.4]} 16... Rf8 {[%clk
0:00:42.4]} 17. Nd6+ {[%clk 0:01:03.2]} 17... Bxd6 {[%clk 0:00:41.4]} 18. exd6
{[%clk 0:01:04.1]} 18... Nf6 {[%clk 0:00:31.8]} 19. Qh4 {[%clk 0:00:42.8]} 19...
Bd7 {[%clk 0:00:20.6]} 20. Be3 {[%clk 0:00:38.4]} 20... Qxd6 {[%clk 0:00:13.1]}
21. Bxd4 {[%clk 0:00:36.8]} 21... Qe7 {[%clk 0:00:09.9]} 22. Rac1 {[%clk
0:00:31.4]} 22... Rc8 {[%clk 0:00:09.3]} 23. Rxc8+ {[%clk 0:00:30.4]} 23... Bxc8
{[%clk 0:00:10.2]} 24. Rc1 {[%clk 0:00:30.6]} 24... Bd7 {[%clk 0:00:10.4]} 25.
Bc5 {[%clk 0:00:29.6]} 25... Qg7 {[%clk 0:00:09.4]} 26. Bxf8 {[%clk 0:00:29.1]}
26... Kxf8 {[%clk 0:00:09.7]} 27. Qb4+ {[%clk 0:00:27.5]} 27... Kf7 {[%clk
0:00:09.6]} 28. Qxb7 {[%clk 0:00:25.9]} 28... e5 {[%clk 0:00:08.9]} 29. Bb5
{[%clk 0:00:22.6]} 29... Qg5 {[%clk 0:00:05.2]} 30. Rf1 {[%clk 0:00:21]} 30...
Ke7 {[%clk 0:00:03.8]} 31. Bxd7 {[%clk 0:00:20.2]} 31... Nxd7 {[%clk 0:00:04.7]}
32. Qxd5 {[%clk 0:00:20.4]} 32... Nf6 {[%clk 0:00:03.8]} 33. Qb7+ {[%clk
0:00:18.8]} 33... Ke6 {[%clk 0:00:03.6]} 34. Qa6+ {[%clk 0:00:19]} 34... Kf5
{[%clk 0:00:03]} 35. Qxa4 {[%clk 0:00:19.7]} 35... Ne4 {[%clk 0:00:03.4]} 36.
Qc2 {[%clk 0:00:19]} 36... Kf4 {[%clk 0:00:01.7]} 37. Qc1+ {[%clk 0:00:19]} 1-0

[Event "Late-Titled-Tuesday-Blitz-October-24-2023"]
[Site "Chess.com"]
[Date "2023.10.24"]
[Round "9"]
[White "DanielNaroditsky"]
[Black "LiemLe"]
[Result "0-1"]
[WhiteElo "3194"]
[BlackElo "3003"]
[TimeControl "180+1"]
[EndTime "15:43:14 PDT"]
[Termination "LiemLe won by resignation"]

1. b3 {[%clk 0:03:00.1]} 1... d5 {[%clk 0:02:58.8]} 2. Bb2 {[%clk 0:03:00.5]}
2... Bf5 {[%clk 0:02:58.9]} 3. Nf3 {[%clk 0:02:59.4]} 3... e6 {[%clk 0:02:57.2]}
4. d3 {[%clk 0:02:59.5]} 4... h6 {[%clk 0:02:56.9]} 5. Nbd2 {[%clk 0:02:59]}
5... Nf6 {[%clk 0:02:55.5]} 6. g3 {[%clk 0:02:59.7]} 6... Bh7 {[%clk 0:02:49.9]}
7. Bg2 {[%clk 0:02:59.9]} 7... a5 {[%clk 0:02:44.2]} 8. a3 {[%clk 0:02:59.3]}
8... a4 {[%clk 0:02:41.5]} 9. b4 {[%clk 0:02:59.6]} 9... c5 {[%clk 0:02:42.1]}
10. bxc5 {[%clk 0:02:59.8]} 10... Bxc5 {[%clk 0:02:43]} 11. O-O {[%clk
0:03:00.1]} 11... Nc6 {[%clk 0:02:39.6]} 12. c4 {[%clk 0:02:55.3]} 12... O-O
{[%clk 0:02:36.8]} 13. Ne5 {[%clk 0:02:42.5]} 13... Qe7 {[%clk 0:02:09.7]} 14.
Ndf3 {[%clk 0:02:27.1]} 14... Bd6 {[%clk 0:01:37.2]} 15. Qc2 {[%clk 0:02:01.3]}
15... Rfc8 {[%clk 0:01:24.9]} 16. Nxc6 {[%clk 0:01:57.9]} 16... Rxc6 {[%clk
0:01:25]} 17. Ne5 {[%clk 0:01:40.4]} 17... Rb6 {[%clk 0:00:49.4]} 18. Bd4 {[%clk
0:01:12.9]} 18... Bc5 {[%clk 0:00:49]} 19. Bxc5 {[%clk 0:01:03]} 19... Qxc5
{[%clk 0:00:49.9]} 20. Rfb1 {[%clk 0:01:02.4]} 20... Rb3 {[%clk 0:00:38.2]} 21.
Rxb3 {[%clk 0:00:50.5]} 21... axb3 {[%clk 0:00:39.1]} 22. Qb2 {[%clk 0:00:50.4]}
22... Rc8 {[%clk 0:00:30.6]} 23. Rc1 {[%clk 0:00:38.1]} 23... b5 {[%clk
0:00:26.9]} 24. Qxb3 {[%clk 0:00:15.9]} 24... dxc4 {[%clk 0:00:26.5]} 25. Qc3
{[%clk 0:00:16.3]} 25... Nd5 {[%clk 0:00:23.2]} 26. Bxd5 {[%clk 0:00:14.8]}
26... exd5 {[%clk 0:00:24.1]} 27. Nf3 {[%clk 0:00:14]} 27... Ra8 {[%clk
0:00:20.9]} 28. Qb4 {[%clk 0:00:10.7]} 28... Qxb4 {[%clk 0:00:20.4]} 29. axb4
{[%clk 0:00:11.6]} 29... cxd3 {[%clk 0:00:20.9]} 30. exd3 {[%clk 0:00:12.5]}
30... Bxd3 {[%clk 0:00:20.8]} 31. Nd4 {[%clk 0:00:09.4]} 31... Bc4 {[%clk
0:00:18.4]} 32. Kg2 {[%clk 0:00:07.1]} 32... Ra4 {[%clk 0:00:17.4]} 33. Rb1
{[%clk 0:00:07.5]} 33... Kf8 {[%clk 0:00:17]} 34. Kf3 {[%clk 0:00:07.6]} 34...
Ke7 {[%clk 0:00:17.3]} 35. Kf4 {[%clk 0:00:08.3]} 35... g6 {[%clk 0:00:16.3]}
36. h4 {[%clk 0:00:07.7]} 36... Kd6 {[%clk 0:00:15.4]} 37. h5 {[%clk 0:00:08.2]}
37... g5+ {[%clk 0:00:15.9]} 38. Ke3 {[%clk 0:00:07.9]} 38... Ra3+ {[%clk
0:00:16.1]} 39. Kd2 {[%clk 0:00:05.4]} 39... Rd3+ {[%clk 0:00:16.2]} 40. Kc2
{[%clk 0:00:05.8]} 40... Rxd4 {[%clk 0:00:17.1]} 0-1

[Event "Late-Titled-Tuesday-Blitz-October-24-2023"]
[Site "Chess.com"]
[Date "2023.10.24"]
[Round "9"]
[White "Bauman_Guy"]
[Black "Lennis93"]
[Result "1-0"]
[WhiteElo "2924"]
[BlackElo "2768"]
[TimeControl "180+1"]
[EndTime "15:43:15 PDT"]
[Termination "Bauman_Guy won by checkmate"]

1. e4 {[%clk 0:03:00.9]} 1... c5 {[%clk 0:03:00.1]} 2. Nf3 {[%clk 0:03:00.5]}
2... Nc6 {[%clk 0:03:00.8]} 3. d4 {[%clk 0:03:00.7]} 3... cxd4 {[%clk
0:03:01.7]} 4. Nxd4 {[%clk 0:03:01.6]} 4... Nf6 {[%clk 0:02:58.5]} 5. Nc3 {[%clk
0:03:01.6]} 5... e5 {[%clk 0:02:59.1]} 6. Ndb5 {[%clk 0:03:01.2]} 6... d6 {[%clk
0:02:59]} 7. Bg5 {[%clk 0:03:01.7]} 7... a6 {[%clk 0:02:59.1]} 8. Na3 {[%clk
0:03:02]} 8... b5 {[%clk 0:02:59.4]} 9. Bxf6 {[%clk 0:03:02.4]} 9... gxf6 {[%clk
0:02:59.3]} 10. Nd5 {[%clk 0:03:03.3]} 10... Bg7 {[%clk 0:02:56.2]} 11. g3
{[%clk 0:03:03.3]} 11... f5 {[%clk 0:02:54.3]} 12. Bg2 {[%clk 0:03:03.3]} 12...
O-O {[%clk 0:02:49.9]} 13. exf5 {[%clk 0:03:02.8]} 13... e4 {[%clk 0:02:17.9]}
14. f6 {[%clk 0:02:43.7]} 14... Bxf6 {[%clk 0:02:17.9]} 15. c3 {[%clk
0:02:43.6]} 15... Bg7 {[%clk 0:02:14.2]} 16. O-O {[%clk 0:02:34.8]} 16... f5
{[%clk 0:02:13.9]} 17. f3 {[%clk 0:02:26.4]} 17... exf3 {[%clk 0:02:00.4]} 18.
Qxf3 {[%clk 0:02:25.6]} 18... Ra7 {[%clk 0:01:58.1]} 19. Nc2 {[%clk 0:02:22.3]}
19... Ne5 {[%clk 0:01:57.9]} 20. Qh5 {[%clk 0:02:21.6]} 20... Kh8 {[%clk
0:01:44.6]} 21. Nd4 {[%clk 0:02:09.9]} 21... Raf7 {[%clk 0:01:36.1]} 22. Nf4
{[%clk 0:02:09.7]} 22... Qd7 {[%clk 0:01:09.9]} 23. Nfe6 {[%clk 0:01:59.5]}
23... Rg8 {[%clk 0:01:05.7]} 24. Ng5 {[%clk 0:01:57.6]} 24... h6 {[%clk
0:00:44.8]} 25. Nxf7+ {[%clk 0:01:52.8]} 25... Nxf7 {[%clk 0:00:45.7]} 26. Nxf5
{[%clk 0:01:51.5]} 26... Qa7+ {[%clk 0:00:32.2]} 27. Kh1 {[%clk 0:01:49.4]}
27... Bxf5 {[%clk 0:00:32.4]} 28. Qxf5 {[%clk 0:01:47.4]} 28... Ne5 {[%clk
0:00:31.5]} 29. Be4 {[%clk 0:01:46]} 29... Bf8 {[%clk 0:00:25.7]} 30. Qf6+
{[%clk 0:01:36.6]} 30... Bg7 {[%clk 0:00:25]} 31. Qxd6 {[%clk 0:01:36.7]} 31...
Qe3 {[%clk 0:00:24.4]} 32. Rae1 {[%clk 0:01:36.5]} 32... Qg5 {[%clk 0:00:23.2]}
33. Qe6 {[%clk 0:01:35.2]} 33... Rd8 {[%clk 0:00:15.6]} 34. Re2 {[%clk
0:01:26.7]} 34... Qh5 {[%clk 0:00:06.7]} 35. Qf5 {[%clk 0:01:25.9]} 35... Qxf5
{[%clk 0:00:06.2]} 36. Bxf5 {[%clk 0:01:26.2]} 36... Nc4 {[%clk 0:00:06.7]} 37.
b3 {[%clk 0:01:20.5]} 37... Na3 {[%clk 0:00:06.6]} 38. Re6 {[%clk 0:01:16]}
38... a5 {[%clk 0:00:05.6]} 39. Bg6 {[%clk 0:01:08.6]} 39... Bxc3 {[%clk
0:00:04.6]} 40. Re8+ {[%clk 0:01:03.8]} 40... Rxe8 {[%clk 0:00:04.3]} 41. Bxe8
{[%clk 0:01:04.7]} 41... Kg7 {[%clk 0:00:04.2]} 42. Rf5 {[%clk 0:01:03.2]} 42...
b4 {[%clk 0:00:03.9]} 43. Rxa5 {[%clk 0:01:02.9]} 43... Nc2 {[%clk 0:00:04.5]}
44. Rc5 {[%clk 0:01:00]} 44... Na3 {[%clk 0:00:02.8]} 45. Rc7+ {[%clk
0:00:57.7]} 45... Kf6 {[%clk 0:00:02.8]} 46. Rc6+ {[%clk 0:00:57.4]} 46... Kg5
{[%clk 0:00:03]} 47. h4+ {[%clk 0:00:56.7]} 47... Kg4 {[%clk 0:00:03]} 48. Kg2
{[%clk 0:00:57]} 48... Nc2 {[%clk 0:00:01.6]} 49. Bd7+ {[%clk 0:00:53.4]} 49...
Kh5 {[%clk 0:00:01.5]} 50. Kh3 {[%clk 0:00:53.9]} 50... Ne3 {[%clk 0:00:01.2]}
51. Be8# {[%clk 0:00:53.9]} 1-0

[Event "Late-Titled-Tuesday-Blitz-October-24-2023"]
[Site "Chess.com"]
[Date "2023.10.24"]
[Round "9"]
[White "aghasiyevkamal"]
[Black "BardArtem"]
[Result "0-1"]
[WhiteElo "2592"]
[BlackElo "2713"]
[TimeControl "180+1"]
[EndTime "15:43:15 PDT"]
[Termination "BardArtem won on time"]

1. c4 {[%clk 0:03:00.9]} 1... c6 {[%clk 0:02:59.3]} 2. Nc3 {[%clk 0:02:56]} 2...
d5 {[%clk 0:02:59.2]} 3. e3 {[%clk 0:02:44.2]} 3... Nf6 {[%clk 0:02:58.7]} 4.
Nf3 {[%clk 0:02:43.9]} 4... a6 {[%clk 0:02:53.2]} 5. Be2 {[%clk 0:02:33.9]} 5...
Bg4 {[%clk 0:02:51.6]} 6. h3 {[%clk 0:02:07.2]} 6... Bh5 {[%clk 0:02:50.1]} 7.
Qb3 {[%clk 0:02:00]} 7... Ra7 {[%clk 0:02:45.4]} 8. cxd5 {[%clk 0:01:52.9]} 8...
cxd5 {[%clk 0:02:44.7]} 9. Qa4+ {[%clk 0:01:50.8]} 9... Nbd7 {[%clk 0:02:36.3]}
10. Qd4 {[%clk 0:01:40.7]} 10... Qb6 {[%clk 0:02:24.6]} 11. Nxd5 {[%clk
0:00:53.1]} 11... Qxd4 {[%clk 0:02:16.9]} 12. Nxd4 {[%clk 0:00:52.7]} 12... Nxd5
{[%clk 0:02:02.6]} 13. Bxh5 {[%clk 0:00:51.8]} 13... e5 {[%clk 0:02:03.5]} 14.
Nb3 {[%clk 0:00:44.7]} 14... a5 {[%clk 0:01:55.5]} 15. a4 {[%clk 0:00:27.5]}
15... Nb4 {[%clk 0:01:54.2]} 16. Kd1 {[%clk 0:00:23.3]} 16... Nc5 {[%clk
0:01:51.3]} 17. Nxc5 {[%clk 0:00:20.6]} 17... Bxc5 {[%clk 0:01:52.2]} 18. Be2
{[%clk 0:00:19.1]} 18... Ke7 {[%clk 0:01:51]} 19. b3 {[%clk 0:00:18.9]} 19...
Rd8 {[%clk 0:01:50.4]} 20. Bb2 {[%clk 0:00:18.8]} 20... b6 {[%clk 0:01:51]} 21.
Bc4 {[%clk 0:00:16.6]} 21... Rad7 {[%clk 0:01:50.9]} 22. Bc3 {[%clk 0:00:17.2]}
22... f6 {[%clk 0:01:49.5]} 23. Ke2 {[%clk 0:00:17.3]} 23... Nd5 {[%clk
0:01:44.7]} 24. Bxd5 {[%clk 0:00:14.6]} 24... Rxd5 {[%clk 0:01:45.6]} 25. Rab1
{[%clk 0:00:14.4]} 25... Bb4 {[%clk 0:01:39.6]} 26. Rhd1 {[%clk 0:00:14]} 26...
Rd3 {[%clk 0:01:29.6]} 27. Rbc1 {[%clk 0:00:13.3]} 27... R8d6 {[%clk 0:01:20.7]}
28. Rc2 {[%clk 0:00:09.2]} 28... Ke6 {[%clk 0:01:11.8]} 29. f3 {[%clk
0:00:07.6]} 29... f5 {[%clk 0:01:10.5]} 30. g4 {[%clk 0:00:05.3]} 30... g6
{[%clk 0:01:09.6]} 31. gxf5+ {[%clk 0:00:05.1]} 31... gxf5 {[%clk 0:01:10.5]}
32. Rg1 {[%clk 0:00:04.9]} 32... e4 {[%clk 0:01:02.9]} 33. fxe4 {[%clk
0:00:04.9]} 33... fxe4 {[%clk 0:01:03.8]} 34. Rg4 {[%clk 0:00:05.5]} 34... Kd5
{[%clk 0:01:00.6]} 35. Rg5+ {[%clk 0:00:05]} 35... Ke6 {[%clk 0:01:01]} 36. Rg4
{[%clk 0:00:05.2]} 36... Bxc3 {[%clk 0:00:58.8]} 37. dxc3 {[%clk 0:00:03.2]}
37... Kf5 {[%clk 0:00:54.1]} 38. Rf4+ {[%clk 0:00:03.3]} 38... Ke5 {[%clk
0:00:54.5]} 39. Rh4 {[%clk 0:00:03.9]} 39... Rg6 {[%clk 0:00:52.5]} 40. Rh5+
{[%clk 0:00:02.6]} 40... Ke6 {[%clk 0:00:52.4]} 41. Kf2 {[%clk 0:00:03]} 41...
Rf6+ {[%clk 0:00:49.9]} 42. Ke2 {[%clk 0:00:03]} 42... Rf3 {[%clk 0:00:50.5]}
43. Rxh7 {[%clk 0:00:02.3]} 43... Rdxe3+ {[%clk 0:00:48.9]} 44. Kd2 {[%clk
0:00:01.2]} 44... Rd3+ {[%clk 0:00:48.7]} 45. Ke2 {[%clk 0:00:01.6]} 45... Rg3
{[%clk 0:00:49.4]} 46. Kf2 {[%clk 0:00:01.3]} 46... Rdf3+ {[%clk 0:00:48.2]} 0-1

[Event "Late-Titled-Tuesday-Blitz-October-24-2023"]
[Site "Chess.com"]
[Date "2023.10.24"]
[Round "9"]
[White "gahryman"]
[Black "whitemirrorninja"]
[Result "1-0"]
[WhiteElo "2685"]
[BlackElo "2578"]
[TimeControl "180+1"]
[EndTime "15:43:19 PDT"]
[Termination "gahryman won by resignation"]

1. e4 {[%clk 0:03:00.9]} 1... c5 {[%clk 0:02:59.3]} 2. Nf3 {[%clk 0:02:59.3]}
2... a6 {[%clk 0:02:59.7]} 3. c3 {[%clk 0:02:59]} 3... e6 {[%clk 0:02:59.6]} 4.
d4 {[%clk 0:02:59]} 4... d5 {[%clk 0:02:59.8]} 5. e5 {[%clk 0:02:56.8]} 5... Nc6
{[%clk 0:02:59.9]} 6. Bd3 {[%clk 0:02:56.9]} 6... Bd7 {[%clk 0:02:57.7]} 7. O-O
{[%clk 0:02:56.1]} 7... Rc8 {[%clk 0:02:57.6]} 8. a3 {[%clk 0:02:45.6]} 8...
cxd4 {[%clk 0:02:52.9]} 9. Re1 {[%clk 0:02:38.4]} 9... Nge7 {[%clk 0:02:50.7]}
10. h4 {[%clk 0:02:27.3]} 10... Nf5 {[%clk 0:02:41.3]} 11. Bxf5 {[%clk
0:02:19.1]} 11... exf5 {[%clk 0:02:42.2]} 12. cxd4 {[%clk 0:02:19.9]} 12... h6
{[%clk 0:02:26.2]} 13. Nc3 {[%clk 0:02:18.8]} 13... Be6 {[%clk 0:02:24.8]} 14.
Ne2 {[%clk 0:02:19]} 14... Be7 {[%clk 0:02:24.2]} 15. Nf4 {[%clk 0:02:19.2]}
15... Bxh4 {[%clk 0:02:21.6]} 16. Nxe6 {[%clk 0:02:17.4]} 16... fxe6 {[%clk
0:02:21.2]} 17. g3 {[%clk 0:01:15.9]} 17... Be7 {[%clk 0:02:19.4]} 18. Kg2
{[%clk 0:01:16.3]} 18... O-O {[%clk 0:02:18.5]} 19. Rh1 {[%clk 0:01:16.5]} 19...
Rf7 {[%clk 0:02:18.6]} 20. Bd2 {[%clk 0:01:15]} 20... Bf8 {[%clk 0:02:18.6]} 21.
Rc1 {[%clk 0:01:13.8]} 21... Ne7 {[%clk 0:02:18.7]} 22. Qb3 {[%clk 0:01:04.7]}
22... Rxc1 {[%clk 0:02:11.9]} 23. Rxc1 {[%clk 0:01:03.9]} 23... Nc6 {[%clk
0:02:11.4]} 24. Qd3 {[%clk 0:01:01.1]} 24... Qb6 {[%clk 0:02:09.6]} 25. Bc3
{[%clk 0:00:56.8]} 25... Rc7 {[%clk 0:02:08.1]} 26. Rh1 {[%clk 0:00:54.9]} 26...
Qb3 {[%clk 0:02:03.9]} 27. g4 {[%clk 0:00:52.3]} 27... fxg4 {[%clk 0:01:59.3]}
28. Nd2 {[%clk 0:00:44.5]} 28... Qb6 {[%clk 0:01:48.1]} 29. Qg6 {[%clk
0:00:44.6]} 29... Nxd4 {[%clk 0:01:44]} 30. Rxh6 {[%clk 0:00:44]} 30... Nf5
{[%clk 0:01:34.6]} 31. Qh7+ {[%clk 0:00:41.6]} 31... Kf7 {[%clk 0:01:34.8]} 32.
Qxf5+ {[%clk 0:00:42.3]} 32... exf5 {[%clk 0:01:21.3]} 33. Rxb6 {[%clk
0:00:42.2]} 33... Bc5 {[%clk 0:01:22]} 34. e6+ {[%clk 0:00:42.1]} 34... Ke7
{[%clk 0:01:19.3]} 35. Bb4 {[%clk 0:00:41.4]} 35... Bxb4 {[%clk 0:01:11.7]} 36.
axb4 {[%clk 0:00:42.3]} 36... g5 {[%clk 0:01:06]} 37. Nb3 {[%clk 0:00:41.6]}
37... Rc4 {[%clk 0:01:02.2]} 38. Nc5 {[%clk 0:00:40.2]} 38... f4 {[%clk
0:00:58.3]} 39. Rxb7+ {[%clk 0:00:40.2]} 39... Ke8 {[%clk 0:00:46.5]} 40. Nd7
{[%clk 0:00:36.6]} 40... Ke7 {[%clk 0:00:28.7]} 41. Ne5+ {[%clk 0:00:36.2]}
41... Kxe6 {[%clk 0:00:28.9]} 42. Nxc4 {[%clk 0:00:36.7]} 42... dxc4 {[%clk
0:00:29.5]} 43. b5 {[%clk 0:00:36.1]} 43... axb5 {[%clk 0:00:27.7]} 44. Rxb5
{[%clk 0:00:36.3]} 44... Kf6 {[%clk 0:00:28.3]} 45. Rc5 {[%clk 0:00:36.4]} 45...
c3 {[%clk 0:00:23.6]} 46. Rxc3 {[%clk 0:00:36]} 46... Kf5 {[%clk 0:00:20.6]} 47.
b4 {[%clk 0:00:35.6]} 47... g3 {[%clk 0:00:20.1]} 48. fxg3 {[%clk 0:00:35.4]}
48... Kg4 {[%clk 0:00:20.3]} 49. gxf4 {[%clk 0:00:35.4]} 49... gxf4 {[%clk
0:00:19.3]} 50. b5 {[%clk 0:00:35.7]} 1-0

[Event "Late-Titled-Tuesday-Blitz-October-24-2023"]
[Site "Chess.com"]
[Date "2023.10.24"]
[Round "9"]
[White "campochess"]
[Black "The_Princess_Moon"]
[Result "0-1"]
[WhiteElo "2206"]
[BlackElo "2328"]
[TimeControl "180+1"]
[EndTime "15:43:23 PDT"]
[Termination "The_Princess_Moon won by resignation"]

1. e4 {[%clk 0:02:57.3]} 1... c5 {[%clk 0:02:58.9]} 2. Nc3 {[%clk 0:02:55.4]}
2... a6 {[%clk 0:02:59.1]} 3. g3 {[%clk 0:02:55.3]} 3... b5 {[%clk 0:02:58.3]}
4. Bg2 {[%clk 0:02:55.4]} 4... Bb7 {[%clk 0:02:58.7]} 5. d3 {[%clk 0:02:55.6]}
5... b4 {[%clk 0:02:58.7]} 6. Nce2 {[%clk 0:02:55.2]} 6... d5 {[%clk 0:02:58.2]}
7. exd5 {[%clk 0:02:43.6]} 7... Bxd5 {[%clk 0:02:57.9]} 8. Nf3 {[%clk
0:02:43.8]} 8... Nf6 {[%clk 0:02:56.6]} 9. O-O {[%clk 0:02:43.7]} 9... e6 {[%clk
0:02:56.6]} 10. Nf4 {[%clk 0:02:43.5]} 10... Bb7 {[%clk 0:02:56.6]} 11. Re1
{[%clk 0:02:41.6]} 11... Be7 {[%clk 0:02:56.5]} 12. a3 {[%clk 0:02:38.8]} 12...
a5 {[%clk 0:02:55.8]} 13. axb4 {[%clk 0:02:37.8]} 13... axb4 {[%clk 0:02:56.7]}
14. Rxa8 {[%clk 0:02:36.7]} 14... Bxa8 {[%clk 0:02:57.6]} 15. Nh4 {[%clk
0:02:31]} 15... Bxg2 {[%clk 0:02:52.9]} 16. Nhxg2 {[%clk 0:02:30.7]} 16... O-O
{[%clk 0:02:47.3]} 17. Qf3 {[%clk 0:02:28.7]} 17... Nbd7 {[%clk 0:02:36.7]} 18.
Qb7 {[%clk 0:02:19]} 18... Qa8 {[%clk 0:02:07.7]} 19. Qxa8 {[%clk 0:02:02.9]}
19... Rxa8 {[%clk 0:02:08.6]} 20. Bd2 {[%clk 0:01:57.5]} 20... Ra2 {[%clk
0:02:03.4]} 21. Rb1 {[%clk 0:01:57.4]} 21... e5 {[%clk 0:01:59.8]} 22. Ne2
{[%clk 0:01:53.3]} 22... Nd5 {[%clk 0:01:55.1]} 23. Nc1 {[%clk 0:01:53.1]} 23...
Ra6 {[%clk 0:01:51.1]} 24. c3 {[%clk 0:01:50.1]} 24... f5 {[%clk 0:01:39.2]} 25.
Ne3 {[%clk 0:01:47.1]} 25... Nxe3 {[%clk 0:01:31.3]} 26. Bxe3 {[%clk 0:01:45]}
26... Kf7 {[%clk 0:01:28.4]} 27. cxb4 {[%clk 0:01:40.4]} 27... cxb4 {[%clk
0:01:27.7]} 28. d4 {[%clk 0:01:38.5]} 28... e4 {[%clk 0:01:17.2]} 29. Ne2 {[%clk
0:01:37]} 29... Nf6 {[%clk 0:01:09.9]} 30. Nf4 {[%clk 0:01:23.9]} 30... g5
{[%clk 0:01:08.6]} 31. Ng2 {[%clk 0:01:23.9]} 31... Nd5 {[%clk 0:01:06.6]} 32.
Bd2 {[%clk 0:01:01.6]} 32... Rc6 {[%clk 0:00:57.1]} 33. Ne3 {[%clk 0:01:01.4]}
33... Nxe3 {[%clk 0:00:53.6]} 34. Bxe3 {[%clk 0:01:01.3]} 34... Rc2 {[%clk
0:00:48.1]} 35. Kf1 {[%clk 0:00:59.6]} 35... Ke6 {[%clk 0:00:46.1]} 36. Ke1
{[%clk 0:00:57.8]} 36... b3 {[%clk 0:00:38.3]} 37. Kd1 {[%clk 0:00:47]} 37... h6
{[%clk 0:00:34.7]} 38. h3 {[%clk 0:00:42]} 38... Bd6 {[%clk 0:00:33]} 39. Bd2
{[%clk 0:00:34]} 39... Kd5 {[%clk 0:00:28.7]} 40. Ra1 {[%clk 0:00:28.2]} 40...
Rxb2 {[%clk 0:00:20.6]} 41. Ra5+ {[%clk 0:00:26.8]} 41... Kc4 {[%clk 0:00:16.9]}
42. Rxf5 {[%clk 0:00:26.5]} 42... Kd3 {[%clk 0:00:15.2]} 43. Rd5 {[%clk
0:00:16.3]} 43... Rb1+ {[%clk 0:00:14.9]} 44. Bc1 {[%clk 0:00:16.4]} 44... b2
{[%clk 0:00:15]} 0-1

[Event "Late-Titled-Tuesday-Blitz-October-24-2023"]
[Site "Chess.com"]
[Date "2023.10.24"]
[Round "9"]
[White "GlavkonVVS"]
[Black "PushingpawnsNYC"]
[Result "1/2-1/2"]
[WhiteElo "2517"]
[BlackElo "2363"]
[TimeControl "180+1"]
[EndTime "15:43:31 PDT"]
[Termination "Game drawn by repetition"]

1. c4 {[%clk 0:03:00.5]} 1... g6 {[%clk 0:02:52.8]} 2. Nc3 {[%clk 0:03:00.9]}
2... Bg7 {[%clk 0:02:52.8]} 3. Nf3 {[%clk 0:03:01.6]} 3... c5 {[%clk 0:02:52.1]}
4. d4 {[%clk 0:03:02.2]} 4... cxd4 {[%clk 0:02:51.8]} 5. Nxd4 {[%clk 0:03:02.4]}
5... Nc6 {[%clk 0:02:52.4]} 6. Nb3 {[%clk 0:03:01.2]} 6... Nf6 {[%clk
0:02:49.6]} 7. c5 {[%clk 0:02:59.2]} 7... O-O {[%clk 0:02:48.4]} 8. e4 {[%clk
0:02:56.8]} 8... b6 {[%clk 0:02:48]} 9. cxb6 {[%clk 0:02:54.5]} 9... axb6 {[%clk
0:02:41.7]} 10. Be3 {[%clk 0:02:52.4]} 10... Ba6 {[%clk 0:02:34.6]} 11. Bxa6
{[%clk 0:02:52.1]} 11... Rxa6 {[%clk 0:02:35.4]} 12. O-O {[%clk 0:02:51.8]}
12... b5 {[%clk 0:02:34.8]} 13. Qd3 {[%clk 0:02:35.1]} 13... Qa8 {[%clk
0:02:09.4]} 14. Qxb5 {[%clk 0:02:25.9]} 14... Rb8 {[%clk 0:02:03.4]} 15. Qe2
{[%clk 0:02:25]} 15... Nb4 {[%clk 0:01:50.3]} 16. Nc5 {[%clk 0:02:24.2]} 16...
Ra5 {[%clk 0:01:37.2]} 17. a3 {[%clk 0:02:23.3]} 17... d6 {[%clk 0:01:30.5]} 18.
Nb3 {[%clk 0:02:13.4]} 18... Nc6 {[%clk 0:01:25.7]} 19. Nxa5 {[%clk 0:02:12.6]}
19... Qxa5 {[%clk 0:01:26.6]} 20. b4 {[%clk 0:02:10.2]} 20... Qe5 {[%clk
0:01:24.3]} 21. Rac1 {[%clk 0:02:07.3]} 21... Nd8 {[%clk 0:01:01.8]} 22. f4
{[%clk 0:01:55.5]} 22... Qe6 {[%clk 0:01:00.6]} 23. Qd3 {[%clk 0:01:40.7]} 23...
Ra8 {[%clk 0:00:40.7]} 24. a4 {[%clk 0:01:35.7]} 24... Qb3 {[%clk 0:00:40.4]}
25. b5 {[%clk 0:01:31.6]} 25... Ne6 {[%clk 0:00:32.7]} 26. Qc2 {[%clk
0:01:11.2]} 26... Qa3 {[%clk 0:00:18.9]} 27. Rfd1 {[%clk 0:01:01.7]} 27... Ng4
{[%clk 0:00:17.8]} 28. Bb6 {[%clk 0:00:46.7]} 28... Rb8 {[%clk 0:00:14.9]} 29.
a5 {[%clk 0:00:42.5]} 29... Rxb6 {[%clk 0:00:12.9]} 30. axb6 {[%clk 0:00:42.3]}
30... Qc5+ {[%clk 0:00:13.1]} 31. Kh1 {[%clk 0:00:38.2]} 31... Nf2+ {[%clk
0:00:12]} 32. Qxf2 {[%clk 0:00:38.2]} 32... Qxf2 {[%clk 0:00:10.6]} 33. Nd5
{[%clk 0:00:33.8]} 33... Nxf4 {[%clk 0:00:08.1]} 34. Nxf4 {[%clk 0:00:31.1]}
34... Qxf4 {[%clk 0:00:01.4]} 35. b7 {[%clk 0:00:31]} 35... Be5 {[%clk
0:00:02.3]} 36. b8=Q+ {[%clk 0:00:22.2]} 36... Kg7 {[%clk 0:00:02.8]} 37. g3
{[%clk 0:00:20.7]} 37... Qf3+ {[%clk 0:00:02.6]} 38. Kg1 {[%clk 0:00:21.1]}
38... Qe3+ {[%clk 0:00:02.1]} 39. Kf1 {[%clk 0:00:20.3]} 39... Qf3+ {[%clk
0:00:02.5]} 40. Ke1 {[%clk 0:00:20.6]} 40... Qe3+ {[%clk 0:00:03]} 41. Kf1
{[%clk 0:00:21]} 41... Qf3+ {[%clk 0:00:03.4]} 42. Kg1 {[%clk 0:00:20.2]} 42...
Qe3+ {[%clk 0:00:03.8]} 43. Kg2 {[%clk 0:00:20.5]} 43... Qe2+ {[%clk 0:00:03.8]}
44. Kh3 {[%clk 0:00:20.6]} 44... Qh5+ {[%clk 0:00:03.9]} 45. Kg2 {[%clk
0:00:20.6]} 45... Qe2+ {[%clk 0:00:04.5]} 46. Kg1 {[%clk 0:00:19.3]} 46... Qe3+
{[%clk 0:00:04.2]} 1/2-1/2